[Event "*** Titled Tuesday Blitz"]
[Site "Chess.com"]
[Date "2021.02.09"]
[Round "6"]
[White "Zhigalko_Sergei"]
[Black "Firouzja2003"]
[Result "0-1"]
[WhiteElo "2896"]
[BlackElo "3029"]
[TimeControl "180+1"]
[EndTime "11:08:22 PST"]
[Termination "Firouzja2003 won by checkmate"]

1. e4 {[%clk 0:03:00.9]} 1... e5 {[%clk 0:02:54.2]} 2. Nf3 {[%clk 0:03:01]} 2...
Nc6 {[%clk 0:02:54.7]} 3. Bc4 {[%clk 0:02:57.8]} 3... Bc5 {[%clk 0:02:53.5]} 4.
b4 {[%clk 0:02:58.1]} 4... Bxb4 {[%clk 0:02:52.2]} 5. c3 {[%clk 0:02:58.6]} 5...
Ba5 {[%clk 0:02:38.2]} 6. d4 {[%clk 0:02:58.5]} 6... d6 {[%clk 0:02:31.1]} 7.
Qb3 {[%clk 0:02:45.4]} 7... Qd7 {[%clk 0:02:13.4]} 8. O-O {[%clk 0:02:29.5]}
8... Bb6 {[%clk 0:02:11.9]} 9. Nbd2 {[%clk 0:02:25.4]} 9... Nf6 {[%clk
0:02:05.6]} 10. dxe5 {[%clk 0:02:18.8]} 10... dxe5 {[%clk 0:01:34.3]} 11. Ba3
{[%clk 0:02:11.1]} 11... Na5 {[%clk 0:01:31.8]} 12. Qc2 {[%clk 0:01:54.1]} 12...
Nxc4 {[%clk 0:01:31.8]} 13. Nxc4 {[%clk 0:01:54.1]} 13... Qe6 {[%clk 0:01:32.5]}
14. Nfxe5 {[%clk 0:01:22.3]} 14... Bd7 {[%clk 0:01:28.9]} 15. Qb3 {[%clk
0:00:34.4]} 15... c5 {[%clk 0:00:54.6]} 16. Rad1 {[%clk 0:00:24.4]} 16... O-O
{[%clk 0:00:53.9]} 17. Rd6 {[%clk 0:00:19]} 17... Qe7 {[%clk 0:00:52.9]} 18.
Nxd7 {[%clk 0:00:17.6]} 18... Nxd7 {[%clk 0:00:52.4]} 19. Rfd1 {[%clk
0:00:17.9]} 19... Rfd8 {[%clk 0:00:49.4]} 20. h3 {[%clk 0:00:10.6]} 20... Bc7
{[%clk 0:00:43.4]} 21. R6d5 {[%clk 0:00:06.2]} 21... b6 {[%clk 0:00:43.7]} 22.
Qc2 {[%clk 0:00:03.6]} 22... Nf6 {[%clk 0:00:43.3]} 23. Rxd8+ {[%clk 0:00:04.2]}
23... Rxd8 {[%clk 0:00:44]} 24. f3 {[%clk 0:00:05.1]} 24... Rxd1+ {[%clk
0:00:41.2]} 25. Qxd1 {[%clk 0:00:06]} 25... Qe6 {[%clk 0:00:41.9]} 26. Qd3
{[%clk 0:00:06.2]} 26... h6 {[%clk 0:00:37.6]} 27. Bc1 {[%clk 0:00:06.8]} 27...
b5 {[%clk 0:00:33.2]} 28. Ne3 {[%clk 0:00:04.4]} 28... Qxa2 {[%clk 0:00:30.4]}
29. Qxb5 {[%clk 0:00:05]} 29... Qa1 {[%clk 0:00:31.1]} 30. Qb2 {[%clk
0:00:05.3]} 30... Qa4 {[%clk 0:00:27.8]} 31. Qc2 {[%clk 0:00:04.8]} 31... Qc6
{[%clk 0:00:24.7]} 32. Qd3 {[%clk 0:00:04.4]} 32... a5 {[%clk 0:00:23.7]} 33.
Nf5 {[%clk 0:00:04.8]} 33... Qe6 {[%clk 0:00:22.3]} 34. Qb5 {[%clk 0:00:04.3]}
34... Qe5 {[%clk 0:00:20.6]} 35. Be3 {[%clk 0:00:03.7]} 35... Qxc3 {[%clk
0:00:18.9]} 36. Qxc5 {[%clk 0:00:03.4]} 36... Qe1# {[%clk 0:00:18.8]} 0-1

[Event "*** Titled Tuesday Blitz"]
[Site "Chess.com"]
[Date "2021.02.09"]
[Round "6"]
[White "louis198"]
[Black "davigator"]
[Result "1-0"]
[WhiteElo "2565"]
[BlackElo "2370"]
[TimeControl "180+1"]
[EndTime "11:08:24 PST"]
[Termination "louis198 won by resignation"]

1. d4 {[%clk 0:03:00.9]} 1... Nf6 {[%clk 0:02:57.8]} 2. c4 {[%clk 0:03:01.1]}
2... e6 {[%clk 0:02:57.4]} 3. Nc3 {[%clk 0:03:01.7]} 3... Bb4 {[%clk 0:02:56.9]}
4. Qb3 {[%clk 0:03:02.2]} 4... c5 {[%clk 0:02:56]} 5. e3 {[%clk 0:03:02.3]} 5...
Nc6 {[%clk 0:02:55]} 6. Bd3 {[%clk 0:03:01.7]} 6... O-O {[%clk 0:02:44.2]} 7.
Ne2 {[%clk 0:03:00.6]} 7... d5 {[%clk 0:02:43.3]} 8. cxd5 {[%clk 0:02:56.2]}
8... exd5 {[%clk 0:02:42.4]} 9. dxc5 {[%clk 0:02:56]} 9... Be6 {[%clk
0:02:24.6]} 10. Nd4 {[%clk 0:02:41.2]} 10... Qa5 {[%clk 0:02:11.9]} 11. Bd2
{[%clk 0:02:33.8]} 11... Qxc5 {[%clk 0:02:09.9]} 12. Nxe6 {[%clk 0:02:32]} 12...
fxe6 {[%clk 0:02:09.6]} 13. O-O {[%clk 0:02:32.1]} 13... Rae8 {[%clk 0:01:59.2]}
14. Rac1 {[%clk 0:02:24.5]} 14... Qe7 {[%clk 0:01:56.2]} 15. a3 {[%clk
0:02:07.6]} 15... Bd6 {[%clk 0:01:55.7]} 16. h3 {[%clk 0:02:01.4]} 16... Bb8
{[%clk 0:01:51.6]} 17. Ne2 {[%clk 0:01:53.8]} 17... e5 {[%clk 0:01:47.2]} 18.
Bb5 {[%clk 0:01:46.8]} 18... Qd6 {[%clk 0:01:45]} 19. Bxc6 {[%clk 0:01:45.2]}
19... bxc6 {[%clk 0:01:44.3]} 20. Bb4 {[%clk 0:01:45.2]} 20... Qe6 {[%clk
0:01:34.2]} 21. Bxf8 {[%clk 0:01:44.8]} 21... Rxf8 {[%clk 0:01:34.8]} 22. Qb7
{[%clk 0:01:44.7]} 22... Rc8 {[%clk 0:01:31.2]} 23. Rfd1 {[%clk 0:01:41.6]}
23... Ne4 {[%clk 0:01:28.5]} 24. Rxd5 {[%clk 0:01:27.2]} 24... Rf8 {[%clk
0:01:20.6]} 25. Qxc6 {[%clk 0:01:18.1]} 25... Qf5 {[%clk 0:01:19.5]} 26. f3
{[%clk 0:01:04.7]} 26... Nf6 {[%clk 0:01:17.1]} 27. Rb5 {[%clk 0:00:33.4]} 27...
Qg6 {[%clk 0:01:09.2]} 28. Qe6+ {[%clk 0:00:26.3]} 28... Kh8 {[%clk 0:01:08.5]}
29. Rc8 {[%clk 0:00:24.3]} 29... Rxc8 {[%clk 0:00:35.5]} 30. Qxc8+ {[%clk
0:00:23.4]} 30... Ng8 {[%clk 0:00:36]} 31. Rxb8 {[%clk 0:00:22.5]} 31... Qf7
{[%clk 0:00:35.5]} 32. Qxg8+ {[%clk 0:00:18.9]} 32... Qxg8 {[%clk 0:00:34.9]}
33. Rxg8+ {[%clk 0:00:19.8]} 33... Kxg8 {[%clk 0:00:35.6]} 34. f4 {[%clk
0:00:20.3]} 34... Kf7 {[%clk 0:00:34.3]} 35. Kf2 {[%clk 0:00:19.2]} 35... Ke6
{[%clk 0:00:34.1]} 36. g4 {[%clk 0:00:18.8]} 36... Kd5 {[%clk 0:00:33.5]} 37.
Kf3 {[%clk 0:00:18.4]} 37... g6 {[%clk 0:00:32.3]} 38. fxe5 {[%clk 0:00:17.8]}
38... Kxe5 {[%clk 0:00:32.4]} 39. Nc3 {[%clk 0:00:18.7]} 39... h6 {[%clk
0:00:31.3]} 40. e4 {[%clk 0:00:18.9]} 40... a6 {[%clk 0:00:30.6]} 41. Ke3 {[%clk
0:00:19]} 41... Kd6 {[%clk 0:00:27.4]} 42. Kd4 {[%clk 0:00:18.5]} 42... Ke6
{[%clk 0:00:27.4]} 43. e5 {[%clk 0:00:19.4]} 43... Ke7 {[%clk 0:00:25.8]} 44.
Ne4 {[%clk 0:00:20.3]} 44... Ke6 {[%clk 0:00:25.7]} 45. Nc5+ {[%clk 0:00:20.4]}
45... Kf7 {[%clk 0:00:26]} 46. Nxa6 {[%clk 0:00:21.3]} 1-0

[Event "*** Titled Tuesday Blitz"]
[Site "Chess.com"]
[Date "2021.02.09"]
[Round "6"]
[White "Atco84"]
[Black "rachidhuilda"]
[Result "0-1"]
[WhiteElo "2470"]
[BlackElo "2297"]
[TimeControl "180+1"]
[EndTime "11:08:24 PST"]
[Termination "rachidhuilda won on time"]

1. d4 {[%clk 0:03:00.4]} 1... Nf6 {[%clk 0:02:59.2]} 2. c4 {[%clk 0:03:00.5]}
2... c5 {[%clk 0:02:59.3]} 3. d5 {[%clk 0:02:59.7]} 3... b5 {[%clk 0:02:59.5]}
4. cxb5 {[%clk 0:02:59.5]} 4... a6 {[%clk 0:02:59.7]} 5. bxa6 {[%clk 0:02:58.6]}
5... g6 {[%clk 0:02:59.1]} 6. Nc3 {[%clk 0:02:58.8]} 6... Bg7 {[%clk 0:02:58.4]}
7. Nf3 {[%clk 0:02:56.8]} 7... O-O {[%clk 0:02:57.2]} 8. g3 {[%clk 0:02:49.2]}
8... d6 {[%clk 0:02:49.9]} 9. Bg2 {[%clk 0:02:45.3]} 9... Nbd7 {[%clk
0:02:49.8]} 10. Rb1 {[%clk 0:02:40.9]} 10... Nb6 {[%clk 0:02:43.1]} 11. Nd2
{[%clk 0:02:39.4]} 11... Bxa6 {[%clk 0:02:32.3]} 12. O-O {[%clk 0:02:33.7]}
12... Qd7 {[%clk 0:01:49.2]} 13. Re1 {[%clk 0:02:25.1]} 13... Rfb8 {[%clk
0:01:48.2]} 14. b3 {[%clk 0:02:24.1]} 14... Bb7 {[%clk 0:01:09.4]} 15. e4 {[%clk
0:01:30.8]} 15... Ng4 {[%clk 0:00:57.7]} 16. Bb2 {[%clk 0:01:00]} 16... Ne5
{[%clk 0:00:56.9]} 17. Qc2 {[%clk 0:00:54.6]} 17... Ba6 {[%clk 0:00:56.6]} 18.
Bf1 {[%clk 0:00:48.9]} 18... Bxf1 {[%clk 0:00:55.3]} 19. Rxf1 {[%clk 0:00:49.8]}
19... e6 {[%clk 0:00:44.7]} 20. dxe6 {[%clk 0:00:46.3]} 20... fxe6 {[%clk
0:00:44.2]} 21. a4 {[%clk 0:00:43.9]} 21... c4 {[%clk 0:00:38.2]} 22. bxc4
{[%clk 0:00:34.3]} 22... Nbxc4 {[%clk 0:00:36.4]} 23. Nxc4 {[%clk 0:00:24.4]}
23... Nxc4 {[%clk 0:00:36.6]} 24. Bc1 {[%clk 0:00:20.1]} 24... Rc8 {[%clk
0:00:36.1]} 25. Rb3 {[%clk 0:00:11]} 25... Na5 {[%clk 0:00:30.8]} 26. Ra3 {[%clk
0:00:11.5]} 26... Nc4 {[%clk 0:00:28.1]} 27. Rb3 {[%clk 0:00:11.3]} 27... Ne5
{[%clk 0:00:22.1]} 28. Kg2 {[%clk 0:00:09.2]} 28... Rxa4 {[%clk 0:00:17.7]} 29.
Qd1 {[%clk 0:00:07]} 29... Rac4 {[%clk 0:00:16.6]} 30. Ne2 {[%clk 0:00:07.1]}
30... Rc2 {[%clk 0:00:16.3]} 31. Bf4 {[%clk 0:00:07.2]} 31... Ng4 {[%clk
0:00:15]} 32. h3 {[%clk 0:00:06.7]} 32... e5 {[%clk 0:00:13.3]} 33. Bg5 {[%clk
0:00:05.3]} 33... h6 {[%clk 0:00:12.4]} 34. Bc1 {[%clk 0:00:02.4]} 34... Nf6
{[%clk 0:00:11.8]} 0-1

[Event "*** Titled Tuesday Blitz"]
[Site "Chess.com"]
[Date "2021.02.09"]
[Round "6"]
[White "kai_nov"]
[Black "ecwinslow"]
[Result "0-1"]
[WhiteElo "2365"]
[BlackElo "2268"]
[TimeControl "180+1"]
[EndTime "11:08:25 PST"]
[Termination "ecwinslow won on time"]

1. d4 {[%clk 0:03:00.9]} 1... Nf6 {[%clk 0:02:59]} 2. c4 {[%clk 0:03:00.6]} 2...
e6 {[%clk 0:02:57.6]} 3. Nc3 {[%clk 0:02:59.8]} 3... c5 {[%clk 0:02:58]} 4. d5
{[%clk 0:02:59.5]} 4... exd5 {[%clk 0:02:58.7]} 5. cxd5 {[%clk 0:02:59.4]} 5...
d6 {[%clk 0:02:58.4]} 6. e4 {[%clk 0:02:58.9]} 6... g6 {[%clk 0:02:58.2]} 7. f3
{[%clk 0:02:57.5]} 7... Bg7 {[%clk 0:02:57.4]} 8. Bg5 {[%clk 0:02:57.4]} 8... h6
{[%clk 0:02:56.3]} 9. Be3 {[%clk 0:02:57.1]} 9... O-O {[%clk 0:02:54.8]} 10. Qd2
{[%clk 0:02:57.3]} 10... a6 {[%clk 0:02:45.8]} 11. a4 {[%clk 0:02:56.6]} 11...
Nbd7 {[%clk 0:02:40.6]} 12. Nh3 {[%clk 0:02:55.2]} 12... Ne5 {[%clk 0:02:35.7]}
13. Nf2 {[%clk 0:02:52.1]} 13... h5 {[%clk 0:02:35.7]} 14. Be2 {[%clk
0:02:43.8]} 14... Rb8 {[%clk 0:02:34.8]} 15. O-O {[%clk 0:02:40.9]} 15... Qc7
{[%clk 0:02:05.3]} 16. h3 {[%clk 0:02:28.6]} 16... Nh7 {[%clk 0:01:26.4]} 17.
Ra3 {[%clk 0:02:12.1]} 17... f5 {[%clk 0:01:25.5]} 18. f4 {[%clk 0:01:37.4]}
18... Nf7 {[%clk 0:01:24.7]} 19. Bd3 {[%clk 0:01:33.6]} 19... Nf6 {[%clk
0:01:00.7]} 20. Rc1 {[%clk 0:01:07.5]} 20... Re8 {[%clk 0:00:57.3]} 21. Kh1
{[%clk 0:01:02.8]} 21... Bd7 {[%clk 0:00:53.8]} 22. Raa1 {[%clk 0:00:38.7]}
22... b5 {[%clk 0:00:48.5]} 23. axb5 {[%clk 0:00:36.5]} 23... axb5 {[%clk
0:00:46.7]} 24. b4 {[%clk 0:00:36.6]} 24... c4 {[%clk 0:00:42]} 25. Bc2 {[%clk
0:00:30.5]} 25... fxe4 {[%clk 0:00:31.9]} 26. Ra7 {[%clk 0:00:26.6]} 26... Qc8
{[%clk 0:00:19.9]} 27. Rca1 {[%clk 0:00:23.4]} 27... Bf5 {[%clk 0:00:17.2]} 28.
R1a5 {[%clk 0:00:18.2]} 28... h4 {[%clk 0:00:13.1]} 29. Ne2 {[%clk 0:00:13]}
29... Nh5 {[%clk 0:00:11.8]} 30. Nd4 {[%clk 0:00:11]} 30... Bxd4 {[%clk
0:00:09.3]} 31. Bxd4 {[%clk 0:00:09.8]} 31... Ng3+ {[%clk 0:00:09.2]} 32. Kg1
{[%clk 0:00:09.8]} 32... c3 {[%clk 0:00:07.7]} 33. Qe3 {[%clk 0:00:06.4]} 33...
Qc4 {[%clk 0:00:06.4]} 0-1

[Event "*** Titled Tuesday Blitz"]
[Site "Chess.com"]
[Date "2021.02.09"]
[Round "6"]
[White "Sanyura"]
[Black "djano"]
[Result "1-0"]
[WhiteElo "2646"]
[BlackElo "2473"]
[TimeControl "180+1"]
[EndTime "11:08:26 PST"]
[Termination "Sanyura won by resignation"]

1. e4 {[%clk 0:03:00.9]} 1... c5 {[%clk 0:02:59.4]} 2. Nf3 {[%clk 0:03:00.9]}
2... g6 {[%clk 0:02:59.5]} 3. d4 {[%clk 0:02:59.9]} 3... cxd4 {[%clk 0:03:00.4]}
4. Nxd4 {[%clk 0:03:00.6]} 4... Nc6 {[%clk 0:02:58.4]} 5. Nc3 {[%clk 0:03:00.6]}
5... Bg7 {[%clk 0:02:58.5]} 6. Be3 {[%clk 0:03:01.2]} 6... Nf6 {[%clk
0:02:58.5]} 7. Bc4 {[%clk 0:02:59.8]} 7... O-O {[%clk 0:02:53.4]} 8. Bb3 {[%clk
0:02:57.3]} 8... Re8 {[%clk 0:02:53.3]} 9. O-O {[%clk 0:02:52]} 9... d6 {[%clk
0:02:53]} 10. h3 {[%clk 0:02:51.2]} 10... Na5 {[%clk 0:02:46.5]} 11. f4 {[%clk
0:02:39.8]} 11... Nxb3 {[%clk 0:02:45.8]} 12. axb3 {[%clk 0:02:40.7]} 12... b6
{[%clk 0:02:27.2]} 13. e5 {[%clk 0:02:24.2]} 13... dxe5 {[%clk 0:02:15.3]} 14.
fxe5 {[%clk 0:02:25.1]} 14... Nd5 {[%clk 0:01:57.1]} 15. Qf3 {[%clk 0:00:59]}
15... Be6 {[%clk 0:01:23.2]} 16. Rad1 {[%clk 0:00:52.1]} 16... Kh8 {[%clk
0:00:46.6]} 17. Nxe6 {[%clk 0:00:48]} 17... fxe6 {[%clk 0:00:47.5]} 18. Nxd5
{[%clk 0:00:47.7]} 18... exd5 {[%clk 0:00:47]} 19. Rxd5 {[%clk 0:00:48.6]} 19...
Qc7 {[%clk 0:00:45.6]} 20. c4 {[%clk 0:00:48.2]} 20... Rf8 {[%clk 0:00:43.3]}
21. Qe4 {[%clk 0:00:46]} 21... Rxf1+ {[%clk 0:00:37.3]} 22. Kxf1 {[%clk
0:00:46.9]} 22... Rf8+ {[%clk 0:00:37.6]} 23. Kg1 {[%clk 0:00:47.3]} 23... Qc6
{[%clk 0:00:32.9]} 24. e6 {[%clk 0:00:41.6]} 24... Kg8 {[%clk 0:00:26.4]} 25. h4
{[%clk 0:00:31.4]} 25... Qe8 {[%clk 0:00:14.2]} 26. Rd7 {[%clk 0:00:28.4]} 26...
Bf6 {[%clk 0:00:14.1]} 27. Bh6 {[%clk 0:00:27.7]} 27... Bg7 {[%clk 0:00:12.7]}
28. Bg5 {[%clk 0:00:28]} 28... Bf6 {[%clk 0:00:12]} 29. Qb7 {[%clk 0:00:24.8]}
29... Kg7 {[%clk 0:00:08.4]} 30. Bxf6+ {[%clk 0:00:19.8]} 30... Kxf6 {[%clk
0:00:09.3]} 31. Qxa7 {[%clk 0:00:15.6]} 31... Kxe6 {[%clk 0:00:09.5]} 32. Rd1
{[%clk 0:00:14.5]} 32... Qc6 {[%clk 0:00:09.5]} 33. Re1+ {[%clk 0:00:13.6]}
33... Kf5 {[%clk 0:00:08.1]} 34. Qxe7 {[%clk 0:00:14.2]} 34... Qc5+ {[%clk
0:00:08.5]} 35. Qxc5+ {[%clk 0:00:13.1]} 35... bxc5 {[%clk 0:00:09.4]} 36. Rf1+
{[%clk 0:00:13.8]} 1-0

[Event "*** Titled Tuesday Blitz"]
[Site "Chess.com"]
[Date "2021.02.09"]
[Round "6"]
[White "DvaHrasta"]
[Black "Spartakus1975"]
[Result "1-0"]
[WhiteElo "2426"]
[BlackElo "2567"]
[TimeControl "180+1"]
[EndTime "11:08:26 PST"]
[Termination "DvaHrasta won by resignation"]

1. c4 {[%clk 0:03:00.9]} 1... e5 {[%clk 0:02:57.8]} 2. g3 {[%clk 0:03:00.4]}
2... Nf6 {[%clk 0:02:56.7]} 3. Bg2 {[%clk 0:03:00.5]} 3... h6 {[%clk 0:02:57.3]}
4. Nf3 {[%clk 0:02:53.6]} 4... e4 {[%clk 0:02:56.7]} 5. Ng1 {[%clk 0:02:46.5]}
5... d5 {[%clk 0:02:50.9]} 6. cxd5 {[%clk 0:02:45.5]} 6... Qxd5 {[%clk
0:02:51.4]} 7. Nc3 {[%clk 0:02:45.5]} 7... Qe5 {[%clk 0:02:51.2]} 8. Nxe4 {[%clk
0:02:40.8]} 8... Nxe4 {[%clk 0:02:43.4]} 9. Qa4+ {[%clk 0:02:40.1]} 9... Nc6
{[%clk 0:02:38]} 10. Qxe4 {[%clk 0:02:39.4]} 10... Qxe4 {[%clk 0:02:38.4]} 11.
Bxe4 {[%clk 0:02:39.2]} 11... Bd7 {[%clk 0:02:39.1]} 12. Nf3 {[%clk 0:02:33.8]}
12... O-O-O {[%clk 0:02:38.2]} 13. O-O {[%clk 0:02:33.3]} 13... f5 {[%clk
0:02:38.1]} 14. Bb1 {[%clk 0:02:27]} 14... g5 {[%clk 0:02:38]} 15. a3 {[%clk
0:02:21.2]} 15... Bg7 {[%clk 0:02:38]} 16. d3 {[%clk 0:02:02.9]} 16... Rhe8
{[%clk 0:02:19.2]} 17. e3 {[%clk 0:01:55.2]} 17... Na5 {[%clk 0:02:19]} 18. Ba2
{[%clk 0:01:36.6]} 18... Bb5 {[%clk 0:02:05.8]} 19. d4 {[%clk 0:01:36.4]} 19...
Bxf1 {[%clk 0:02:04.4]} 20. Kxf1 {[%clk 0:01:36.6]} 20... Nc6 {[%clk 0:01:55.5]}
21. Bd2 {[%clk 0:01:31.3]} 21... Ne7 {[%clk 0:01:54.8]} 22. Be6+ {[%clk
0:01:22.4]} 22... Kb8 {[%clk 0:01:54.4]} 23. Bb4 {[%clk 0:01:21.7]} 23... f4
{[%clk 0:01:44.9]} 24. gxf4 {[%clk 0:01:15.8]} 24... gxf4 {[%clk 0:01:44.6]} 25.
exf4 {[%clk 0:01:12.2]} 25... Nd5 {[%clk 0:01:28]} 26. f5 {[%clk 0:01:09.9]}
26... Nxb4 {[%clk 0:01:24.8]} 27. axb4 {[%clk 0:01:09.3]} 27... Bxd4 {[%clk
0:01:24.6]} 28. Nxd4 {[%clk 0:01:02.7]} 28... Rxd4 {[%clk 0:01:23.9]} 29. b5
{[%clk 0:00:59.8]} 29... Rb4 {[%clk 0:01:13.6]} 30. Ra3 {[%clk 0:00:54.4]} 30...
Rxb5 {[%clk 0:01:08.4]} 31. Bd7 {[%clk 0:00:51.4]} 31... Rbe5 {[%clk 0:01:02.5]}
32. Bxe8 {[%clk 0:00:51.2]} 32... Rxe8 {[%clk 0:01:03]} 33. Kg2 {[%clk 0:00:48]}
33... Rf8 {[%clk 0:01:01.4]} 34. Rf3 {[%clk 0:00:47]} 34... c5 {[%clk 0:01:01]}
35. Kg3 {[%clk 0:00:44.9]} 35... Kc7 {[%clk 0:01:01.2]} 36. Kg4 {[%clk
0:00:41.5]} 36... b5 {[%clk 0:01:00.1]} 37. f6 {[%clk 0:00:40.4]} 37... a5
{[%clk 0:00:58.8]} 38. Kh5 {[%clk 0:00:40.4]} 38... c4 {[%clk 0:00:54.2]} 39.
Kxh6 {[%clk 0:00:40.3]} 39... Kc6 {[%clk 0:00:51.5]} 40. Kg7 {[%clk 0:00:40.3]}
40... Ra8 {[%clk 0:00:51.4]} 41. f7 {[%clk 0:00:40.6]} 41... b4 {[%clk
0:00:51.6]} 42. f8=Q {[%clk 0:00:40.4]} 42... Rxf8 {[%clk 0:00:51.4]} 43. Rxf8
{[%clk 0:00:40]} 43... a4 {[%clk 0:00:45.3]} 44. h4 {[%clk 0:00:38.4]} 44... b3
{[%clk 0:00:36.1]} 45. Ra8 {[%clk 0:00:31.4]} 45... Kb5 {[%clk 0:00:29.6]} 46.
h5 {[%clk 0:00:31.4]} 46... c3 {[%clk 0:00:23]} 47. bxc3 {[%clk 0:00:30.9]}
47... b2 {[%clk 0:00:18.5]} 48. Rb8+ {[%clk 0:00:30]} 1-0

[Event "*** Titled Tuesday Blitz"]
[Site "Chess.com"]
[Date "2021.02.09"]
[Round "6"]
[White "NikolasTheiss"]
[Black "IngOscarArdila"]
[Result "1-0"]
[WhiteElo "2328"]
[BlackElo "2157"]
[TimeControl "180+1"]
[EndTime "11:08:26 PST"]
[Termination "NikolasTheiss won on time"]

1. h4 {[%clk 0:03:00.9]} 1... h5 {[%clk 0:02:57.3]} 2. d4 {[%clk 0:02:59.5]}
2... d5 {[%clk 0:02:57.2]} 3. c4 {[%clk 0:02:59.4]} 3... c6 {[%clk 0:02:56.6]}
4. Nc3 {[%clk 0:02:59.6]} 4... Nf6 {[%clk 0:02:56.2]} 5. Qb3 {[%clk 0:02:57.9]}
5... e6 {[%clk 0:02:53.2]} 6. Bg5 {[%clk 0:02:57]} 6... Be7 {[%clk 0:02:52.9]}
7. e3 {[%clk 0:02:56.7]} 7... Nbd7 {[%clk 0:02:51.8]} 8. Nh3 {[%clk 0:02:52.4]}
8... Qb6 {[%clk 0:02:51.1]} 9. Nf4 {[%clk 0:02:51.8]} 9... Qxb3 {[%clk
0:02:43.1]} 10. axb3 {[%clk 0:02:52.7]} 10... Ng8 {[%clk 0:02:28.1]} 11. c5
{[%clk 0:02:14.5]} 11... Bxg5 {[%clk 0:02:27.6]} 12. hxg5 {[%clk 0:02:15.4]}
12... g6 {[%clk 0:02:27.4]} 13. Nd3 {[%clk 0:01:48.3]} 13... Ne7 {[%clk
0:02:25]} 14. f4 {[%clk 0:01:46]} 14... Nf5 {[%clk 0:02:23.7]} 15. Kf2 {[%clk
0:01:45.4]} 15... h4 {[%clk 0:02:22.4]} 16. b4 {[%clk 0:01:44.2]} 16... a6
{[%clk 0:02:20.9]} 17. b5 {[%clk 0:01:42.9]} 17... Ke7 {[%clk 0:01:52.6]} 18.
Be2 {[%clk 0:01:42]} 18... Ng3 {[%clk 0:01:47]} 19. Rh2 {[%clk 0:01:30.2]} 19...
f6 {[%clk 0:01:30.4]} 20. Nb4 {[%clk 0:01:08.6]} 20... cxb5 {[%clk 0:01:10.7]}
21. Nxb5 {[%clk 0:00:50.2]} 21... fxg5 {[%clk 0:01:10.5]} 22. c6 {[%clk
0:00:33.8]} 22... bxc6 {[%clk 0:00:56.1]} 23. Nxc6+ {[%clk 0:00:34.7]} 23... Kf8
{[%clk 0:00:42.2]} 24. Nc7 {[%clk 0:00:35.1]} 24... Ne4+ {[%clk 0:00:33.6]} 25.
Ke1 {[%clk 0:00:33.9]} 25... Bb7 {[%clk 0:00:31.2]} 26. Nxa8 {[%clk 0:00:33.6]}
26... Bxa8 {[%clk 0:00:31.6]} 27. Ne5 {[%clk 0:00:17.1]} 27... Nxe5 {[%clk
0:00:28.4]} 28. fxe5 {[%clk 0:00:18]} 28... Bb7 {[%clk 0:00:16.4]} 29. Bxa6
{[%clk 0:00:17.3]} 29... Bxa6 {[%clk 0:00:15.1]} 30. Rxa6 {[%clk 0:00:18.2]}
30... Kg7 {[%clk 0:00:15.7]} 31. Ra7+ {[%clk 0:00:18.2]} 31... Kh6 {[%clk
0:00:15.7]} 32. Re7 {[%clk 0:00:14]} 32... Rb8 {[%clk 0:00:15.6]} 33. g4 {[%clk
0:00:10.9]} 33... Rxb2 {[%clk 0:00:15.6]} 34. Rxb2 {[%clk 0:00:10]} 34... h3
{[%clk 0:00:05.8]} 35. Rb8 {[%clk 0:00:09.2]} 35... Nf6 {[%clk 0:00:04.1]} 36.
Rh8+ {[%clk 0:00:09.1]} 1-0

[Event "*** Titled Tuesday Blitz"]
[Site "Chess.com"]
[Date "2021.02.09"]
[Round "6"]
[White "beto-betun"]
[Black "maxz1996"]
[Result "1-0"]
[WhiteElo "2187"]
[BlackElo "2117"]
[TimeControl "180+1"]
[EndTime "11:08:26 PST"]
[Termination "beto-betun won on time"]

1. d4 {[%clk 0:03:00.9]} 1... d5 {[%clk 0:02:59]} 2. Nf3 {[%clk 0:03:01.1]} 2...
Nf6 {[%clk 0:02:51.4]} 3. g3 {[%clk 0:03:00.9]} 3... c5 {[%clk 0:02:50.1]} 4.
Bg2 {[%clk 0:02:59.8]} 4... Nc6 {[%clk 0:02:47.5]} 5. O-O {[%clk 0:02:56.1]}
5... Bf5 {[%clk 0:02:42.1]} 6. c4 {[%clk 0:02:53.7]} 6... e6 {[%clk 0:02:30]} 7.
cxd5 {[%clk 0:02:51.8]} 7... exd5 {[%clk 0:02:22.7]} 8. Nc3 {[%clk 0:02:51.5]}
8... Be7 {[%clk 0:02:10.4]} 9. dxc5 {[%clk 0:02:51.4]} 9... Bxc5 {[%clk
0:02:11.3]} 10. Bg5 {[%clk 0:02:50.6]} 10... d4 {[%clk 0:02:05.9]} 11. Na4
{[%clk 0:02:43.8]} 11... Be7 {[%clk 0:02:05.9]} 12. Rc1 {[%clk 0:02:44.1]} 12...
O-O {[%clk 0:02:05.4]} 13. Nc5 {[%clk 0:02:41.9]} 13... Qb6 {[%clk 0:01:57.6]}
14. Nxd4 {[%clk 0:02:34.8]} 14... Rfd8 {[%clk 0:01:40.7]} 15. Nxc6 {[%clk
0:02:03.8]} 15... bxc6 {[%clk 0:00:32.7]} 16. Nd3 {[%clk 0:01:51.3]} 16... Rac8
{[%clk 0:00:13.4]} 17. Qc2 {[%clk 0:01:46.4]} 17... c5 {[%clk 0:00:12.7]} 18. b3
{[%clk 0:01:39.5]} 18... h6 {[%clk 0:00:08.1]} 19. Bf4 {[%clk 0:01:37.8]} 19...
Ne4 {[%clk 0:00:05.1]} 20. Be5 {[%clk 0:01:30.7]} 20... c4 {[%clk 0:00:04.4]}
21. bxc4 {[%clk 0:01:29.3]} 21... Nc5 {[%clk 0:00:04.9]} 22. Rfd1 {[%clk
0:01:17.1]} 22... Nxd3 {[%clk 0:00:03.1]} 23. exd3 {[%clk 0:01:18]} 23... Rd7
{[%clk 0:00:03.4]} 24. Be4 {[%clk 0:01:04.9]} 24... Bxe4 {[%clk 0:00:01.9]} 25.
dxe4 {[%clk 0:01:05.8]} 25... Rcd8 {[%clk 0:00:02.4]} 26. Rxd7 {[%clk
0:00:57.7]} 26... Rxd7 {[%clk 0:00:03.3]} 27. c5 {[%clk 0:00:58.3]} 27... Qc6
{[%clk 0:00:03.3]} 28. Qc4 {[%clk 0:00:54.9]} 28... Kf8 {[%clk 0:00:03.2]} 29.
f4 {[%clk 0:00:49.6]} 29... f6 {[%clk 0:00:03.6]} 30. Bb2 {[%clk 0:00:48.1]}
30... Rc7 {[%clk 0:00:03.9]} 31. Ba3 {[%clk 0:00:46.8]} 31... g5 {[%clk
0:00:04.2]} 32. fxg5 {[%clk 0:00:45.1]} 32... hxg5 {[%clk 0:00:05.1]} 33. Qd5
{[%clk 0:00:39.1]} 33... Kg7 {[%clk 0:00:04.7]} 34. Qxc6 {[%clk 0:00:35.1]}
34... Rxc6 {[%clk 0:00:05.6]} 35. Bb4 {[%clk 0:00:35.3]} 35... Kf7 {[%clk
0:00:06]} 36. Kf2 {[%clk 0:00:33.5]} 36... Ke6 {[%clk 0:00:06.5]} 37. Kf3 {[%clk
0:00:32.5]} 37... Ke5 {[%clk 0:00:04.7]} 38. h4 {[%clk 0:00:30.9]} 38... gxh4
{[%clk 0:00:04.2]} 39. gxh4 {[%clk 0:00:31.8]} 39... f5 {[%clk 0:00:04.6]} 40.
exf5 {[%clk 0:00:26.8]} 40... Bxh4 {[%clk 0:00:03.5]} 41. Kg4 {[%clk 0:00:25.3]}
41... Be7 {[%clk 0:00:02.8]} 42. Rd1 {[%clk 0:00:23.4]} 42... Bxc5 {[%clk
0:00:02]} 43. Rc1 {[%clk 0:00:22.1]} 1-0